[Event "Sunway Sitges Chess Festival"]
[Date "2024.12.22"]
[White "Moussard, Jules"]
[Black "Ilamparthi A R"]
[WhiteElo "2649"]
[BlackElo "2391"]
[Round "15.3"]
[Result "1-0"]
[TimeControl "40/5400+30:1800+30"]

1. a3 {[%clk 0:05:05]} 1... e5 {[%clk 0:05:05]} 2. e3 {[%clk 0:05:07]} 2... d5
{[%clk 0:04:59]} 3. d3 {[%clk 0:05:10]} 3... Nf6 {[%clk 0:05:01]} 4. h3 {[%clk
0:05:12]} 4... Nc6 {[%clk 0:05:03]} 5. g3 {[%clk 0:05:14]} 5... Be7 {[%clk
0:05:03]} 6. b3 {[%clk 0:05:16]} 6... Be6 {[%clk 0:05:05]} 7. Ne2 {[%clk
0:05:18]} 7... Qd7 {[%clk 0:05:07]} 8. Nd2 {[%clk 0:05:19]} 8... O-O {[%clk
0:05:04]} 9. Bg2 {[%clk 0:05:22]} 9... a5 {[%clk 0:05:06]} 10. Bb2 {[%clk
0:05:24]} 10... Rad8 {[%clk 0:04:58]} 11. Nf3 {[%clk 0:05:25]} 11... Bd6 {[%clk
0:04:57]} 12. d4 {[%clk 0:05:04]} 12... e4 {[%clk 0:04:29]} 13. Ne5 {[%clk
0:05:06]} 13... Qe7 {[%clk 0:03:55]} 14. Qd2 {[%clk 0:05:08]} 14... a4 {[%clk
0:03:48]} 15. Nf4 {[%clk 0:05:09]} 15... Bc8 {[%clk 0:03:27]} 16. Qc3 {[%clk
0:05:11]} 16... Rfe8 {[%clk 0:03:13]} 17. Nxc6 {[%clk 0:04:59]} 17... bxc6
{[%clk 0:03:14]} 18. Qxc6 {[%clk 0:04:54]} 18... Bd7 {[%clk 0:03:04]} 19. Qc3
{[%clk 0:04:56]} 19... Bb5 {[%clk 0:03:06]} 20. Qd2 {[%clk 0:04:36]} 20... Bxf4
{[%clk 0:02:26]} 21. gxf4 {[%clk 0:04:38]} 21... Rd6 {[%clk 0:02:28]} 22. Bc3
{[%clk 0:04:36]} 22... Rc6 {[%clk 0:02:18]} 23. Bb4 {[%clk 0:04:37]} 23... Qe6
{[%clk 0:02:19]} 24. Bf1 {[%clk 0:04:34]} 24... Bxf1 {[%clk 0:02:13]} 25. Kxf1
{[%clk 0:04:36]} 25... Qf5 {[%clk 0:01:58]} 26. Bc5 {[%clk 0:04:36]} 26... Nd7
{[%clk 0:01:59]} 27. b4 {[%clk 0:04:38]} 27... Rh6 {[%clk 0:01:57]} 28. h4
{[%clk 0:04:12]} 28... Nb6 {[%clk 0:01:32]} 29. Bxb6 {[%clk 0:04:10]} 29... cxb6
{[%clk 0:01:34]} 30. c4 {[%clk 0:04:09]} 30... dxc4 {[%clk 0:01:33]} 31. Rc1
{[%clk 0:04:05]} 31... Qd5 {[%clk 0:01:34]} 32. Qe2 {[%clk 0:04:05]} 32... b5
{[%clk 0:01:36]} 33. Ke1 {[%clk 0:04:06]} 33... Rg6 {[%clk 0:01:24]} 34. h5
{[%clk 0:04:03]} 34... Rc6 {[%clk 0:01:20]} 35. Qg4 {[%clk 0:04:00]} 35... c3
{[%clk 0:01:07]} 36. Rg1 {[%clk 0:03:53]} 36... g6 {[%clk 0:01:09]} 37. Qe2
{[%clk 0:03:23]} 37... Kf8 {[%clk 0:00:53]} 38. Rg5 {[%clk 0:03:21]} 38... f5
{[%clk 0:00:55]} 39. Kf1 {[%clk 0:02:58]} 39... Rec8 {[%clk 0:00:55]} 40. Rc2
{[%clk 0:02:51]} 40... Kf7 {[%clk 0:00:53]} 41. Kg2 {[%clk 0:02:51]} 41... R6c7
{[%clk 0:00:44]} 42. Kh2 {[%clk 0:02:43]} 42... Rc6 {[%clk 0:00:46]} 43. Rg1
{[%clk 0:02:45]} 43... Rc4 {[%clk 0:00:44]} 44. Qf1 {[%clk 0:02:46]} 44... R4c6
{[%clk 0:00:41]} 45. Qh3 {[%clk 0:02:47]} 45... Kg7 {[%clk 0:00:41]} 46. Qh4
{[%clk 0:02:49]} 46... Qd8 {[%clk 0:00:37]} 47. Qg3 {[%clk 0:02:41]} 47... Qd5
{[%clk 0:00:35]} 48. Qg5 {[%clk 0:02:31]} 48... Qd8 {[%clk 0:00:36]} 49. Qxf5
{[%clk 0:02:31]} 49... Qh4+ {[%clk 0:00:14]} 50. Qh3 {[%clk 0:02:33]} 50... Qf6
{[%clk 0:00:16]} 51. f5 {[%clk 0:02:20]} 51... Qd6+ {[%clk 0:00:14]} 52. Kh1
{[%clk 0:02:21]} 52... Qd5 {[%clk 0:00:05]} 53. Rg5 {[%clk 0:02:19]} 53... Qd8
{[%clk 0:00:12]} 54. Qg4 {[%clk 0:02:19]} 54... Kh6 {[%clk 0:00:04]} 55. f4
{[%clk 0:02:17]} 55... exf3 {[%clk 0:00:12]} 56. hxg6 {[%clk 0:02:19]} 56... f2
{[%clk 0:00:08]} 57. Qh4+ {[%clk 0:01:54]} 57... Kg7 {[%clk 0:00:10]} 58. f6+
{[%clk 0:01:56]} 58... Qxf6 {[%clk 0:00:08]} 59. Qxh7+ {[%clk 0:01:58]} 59...
Kf8 {[%clk 0:00:11]} 60. g7+ {[%clk 0:02:00]} 60... Ke7 {[%clk 0:00:13]} 61.
g8=Q+ {[%clk 0:01:52]} 61... Kd6 {[%clk 0:00:15]} 62. Rd5# {[%clk 0:01:54]} 1-0

[Variant "Standard"]
[Site "Europe Echecs"]

[Event "Sunway Sitges Chess Festival"]
[Date "2024.12.22"]
[White "Moussard, Jules"]
[Black "Ilamparthi A R"]
[WhiteElo "2649"]
[BlackElo "2391"]
[Round "16.1"]
[Result "1-0"]
[TimeControl "40/5400+30:1800+30"]

1. d3 {[%clk 0:05:59]} 1... d6 {[%clk 0:04:59]} 2. Nd2 {[%clk 0:05:58]} 2... g6
{[%clk 0:04:58]} 3. h4 {[%clk 0:05:42]} 3... Nf6 {[%clk 0:04:57]} 4. b3 {[%clk
0:05:41]} 4... Bg7 {[%clk 0:04:56]} 5. Bb2 {[%clk 0:05:40]} 5... O-O {[%clk
0:04:55]} 6. e3 {[%clk 0:05:38]} 6... e5 {[%clk 0:04:54]} 7. Be2 {[%clk
0:05:34]} 7... c5 {[%clk 0:04:52]} 8. h5 {[%clk 0:05:34]} 8... Nc6 {[%clk
0:04:51]} 9. hxg6 {[%clk 0:05:28]} 9... hxg6 {[%clk 0:04:50]} 10. Ngf3 {[%clk
0:05:26]} 10... Re8 {[%clk 0:04:47]} 11. Ng5 {[%clk 0:05:23]} 11... Qe7 {[%clk
0:04:39]} 12. c4 {[%clk 0:05:19]} 12... a5 {[%clk 0:04:33]} 13. Nde4 {[%clk
0:05:07]} 13... a4 {[%clk 0:04:30]} 14. Nxf6+ {[%clk 0:05:00]} 14... Bxf6 {[%clk
0:04:29]} 15. Ne4 {[%clk 0:04:59]} 15... Bg7 {[%clk 0:04:28]} 16. Nc3 {[%clk
0:04:53]} 16... a3 {[%clk 0:04:26]} 17. Nd5 {[%clk 0:04:51]} 17... Qd8 {[%clk
0:04:21]} 18. Bc3 {[%clk 0:04:49]} 18... Be6 {[%clk 0:04:19]} 19. Bf3 {[%clk
0:04:47]} 19... Rb8 {[%clk 0:04:05]} 20. Qc1 {[%clk 0:04:44]} 20... b5 {[%clk
0:03:55]} 21. cxb5 {[%clk 0:04:42]} 21... Rxb5 {[%clk 0:03:48]} 22. Nf6+ {[%clk
0:04:37]} 22... Bxf6 {[%clk 0:03:38]} 23. Bxc6 {[%clk 0:04:36]} 23... Bd7 {[%clk
0:03:38]} 24. Bxb5 {[%clk 0:04:32]} 24... Bxb5 {[%clk 0:03:36]} 25. Qxa3 {[%clk
0:04:16]} 25... e4 {[%clk 0:03:27]} 26. Qb2 {[%clk 0:04:13]} 26... Be5 {[%clk
0:02:40]} 27. dxe4 {[%clk 0:04:03]} 27... Qg5 {[%clk 0:02:19]} 28. O-O-O {[%clk
0:03:52]} 28... Qxg2 {[%clk 0:02:17]} 29. Rh4 {[%clk 0:02:58]} 29... Qf3 {[%clk
0:01:41]} 30. Rxd6 {[%clk 0:02:43]} 30... f6 {[%clk 0:01:33]} 31. Bxe5 {[%clk
0:02:28]} 31... Rxe5 {[%clk 0:01:32]} 32. Rf4 {[%clk 0:02:22]} 32... Qh1+ {[%clk
0:01:26]} 33. Rd1 {[%clk 0:02:21]} 33... Qh5 {[%clk 0:00:59]} 34. Rxf6 {[%clk
0:02:16]} 34... c4 {[%clk 0:00:59]} 35. bxc4 {[%clk 0:02:00]} 35... Bxc4 {[%clk
0:00:45]} 36. Qb8+ {[%clk 0:01:55]} 36... Kg7 {[%clk 0:00:41]} 37. Qf8+ {[%clk
0:01:49]} 1-0

[Variant "Standard"]
[Site "Europe Echecs"]

[Event "Sunway Sitges Chess Festival"]
[Date "2024.12.22"]
[White "Tin, Jingyao"]
[Black "Li, Di"]
[WhiteElo "2480"]
[BlackElo "2440"]
[Round "17.1"]
[Result "0-1"]
[TimeControl "40/5400+30:1800+30"]

1. d4 {[%clk 0:05:04]} 1... Nf6 {[%clk 0:05:05]} 2. c4 {[%clk 0:05:07]} 2... e6
{[%clk 0:05:08]} 3. Nc3 {[%clk 0:05:08]} 3... d5 {[%clk 0:05:10]} 4. cxd5 {[%clk
0:05:10]} 4... exd5 {[%clk 0:05:12]} 5. Bg5 {[%clk 0:05:11]} 5... c6 {[%clk
0:05:14]} 6. e3 {[%clk 0:05:13]} 6... Be7 {[%clk 0:05:16]} 7. Bd3 {[%clk
0:05:15]} 7... O-O {[%clk 0:05:17]} 8. h3 {[%clk 0:05:15]} 8... Re8 {[%clk
0:05:19]} 9. Qc2 {[%clk 0:05:13]} 9... Nbd7 {[%clk 0:05:16]} 10. Nf3 {[%clk
0:05:10]} 10... Nf8 {[%clk 0:05:11]} 11. Bf4 {[%clk 0:05:12]} 11... Bd6 {[%clk
0:04:55]} 12. Bxd6 {[%clk 0:05:03]} 12... Qxd6 {[%clk 0:04:56]} 13. O-O-O {[%clk
0:04:53]} 13... Be6 {[%clk 0:04:43]} 14. Kb1 {[%clk 0:04:53]} 14... Rac8 {[%clk
0:04:43]} 15. g4 {[%clk 0:04:30]} 15... c5 {[%clk 0:03:34]} 16. dxc5 {[%clk
0:04:30]} 16... Rxc5 {[%clk 0:03:32]} 17. Nd4 {[%clk 0:04:26]} 17... Rec8 {[%clk
0:03:29]} 18. Qb3 {[%clk 0:04:13]} 18... N6d7 {[%clk 0:02:49]} 19. f4 {[%clk
0:04:14]} 19... Rxc3 {[%clk 0:02:36]} 20. bxc3 {[%clk 0:04:13]} 20... Nc5 {[%clk
0:02:39]} 21. Qa3 {[%clk 0:03:56]} 21... Bd7 {[%clk 0:02:39]} 22. Ka1 {[%clk
0:03:47]} 22... Qe7 {[%clk 0:02:30]} 23. Rhe1 {[%clk 0:03:31]} 23... g6 {[%clk
0:02:10]} 24. Bc2 {[%clk 0:03:17]} 24... Qh4 {[%clk 0:02:04]} 25. g5 {[%clk
0:02:23]} 25... Qxh3 {[%clk 0:01:58]} 26. Nb3 {[%clk 0:02:22]} 26... Na4 {[%clk
0:01:59]} 27. Rxd5 {[%clk 0:02:19]} 27... Rxc3 {[%clk 0:01:57]} 28. Qc1 {[%clk
0:01:27]} 28... Qg3 {[%clk 0:01:10]} 29. Red1 {[%clk 0:00:42]} 29... Rc7 {[%clk
0:00:44]} 30. Qd2 {[%clk 0:00:17]} 30... Nc3 {[%clk 0:00:42]} 31. Rc5 {[%clk
0:00:19]} 31... Rxc5 {[%clk 0:00:31]} 32. Nxc5 {[%clk 0:00:20]} 32... Nxd1
{[%clk 0:00:23]} 33. Bxd1 {[%clk 0:00:22]} 33... Bc6 {[%clk 0:00:09]} 34. Bb3
{[%clk 0:00:21]} 34... Qg1+ {[%clk 0:00:07]} 35. Kb2 {[%clk 0:00:24]} 35... Qg2
{[%clk 0:00:09]} 36. Qxg2 {[%clk 0:00:17]} 36... Bxg2 {[%clk 0:00:11]} 37. Kc3
{[%clk 0:00:18]} 37... Kg7 {[%clk 0:00:13]} 38. Kd4 {[%clk 0:00:18]} 38... f6
{[%clk 0:00:16]} 39. e4 {[%clk 0:00:13]} 39... b6 {[%clk 0:00:17]} 40. Nd3
{[%clk 0:00:11]} 40... Bh3 {[%clk 0:00:06]} 41. Nb4 {[%clk 0:00:06]} 41... Be6
{[%clk 0:00:05]} 42. gxf6+ {[%clk 0:00:05]} 42... Kxf6 {[%clk 0:00:07]} 43. Nc6
{[%clk 0:00:05]} 43... Bxb3 {[%clk 0:00:07]} 44. axb3 {[%clk 0:00:08]} 44...
Ne6+ {[%clk 0:00:10]} 45. Ke3 {[%clk 0:00:10]} 45... a5 {[%clk 0:00:12]} 46. Kf3
{[%clk 0:00:05]} 46... Nc5 {[%clk 0:00:09]} 47. Nd4 {[%clk 0:00:05]} 47... Ke7
{[%clk 0:00:07]} 48. e5 {[%clk 0:00:06]} 48... Ne6 {[%clk 0:00:06]} 49. Nb5
{[%clk 0:00:05]} 49... Kd7 {[%clk 0:00:08]} 50. Kg4 {[%clk 0:00:05]} 50... Kc6
{[%clk 0:00:08]} 51. Nc3 {[%clk 0:00:06]} 51... Nd4 {[%clk 0:00:09]} 52. Kg5
{[%clk 0:00:06]} 52... Ne6+ {[%clk 0:00:07]} 53. Kg4 {[%clk 0:00:05]} 53... h5+
{[%clk 0:00:08]} 54. Kg3 {[%clk 0:00:06]} 54... Nd4 {[%clk 0:00:06]} 55. Kh4
{[%clk 0:00:06]} 55... Ne6 {[%clk 0:00:08]} 56. Kg3 {[%clk 0:00:05]} 56... b5
{[%clk 0:00:08]} 57. Ne2 {[%clk 0:00:04]} 57... b4 {[%clk 0:00:06]} 58. Kf3
{[%clk 0:00:05]} 58... Kd5 {[%clk 0:00:08]} 59. Ke3 {[%clk 0:00:06]} 59... h4
{[%clk 0:00:07]} 60. Ng1 {[%clk 0:00:06]} 60... Nc5 {[%clk 0:00:07]} 61. Nf3
{[%clk 0:00:06]} 61... Nxb3 {[%clk 0:00:10]} 62. Nxh4 {[%clk 0:00:08]} 62... Nc5
{[%clk 0:00:08]} 63. Nxg6 {[%clk 0:00:08]} 63... a4 {[%clk 0:00:10]} 64. Kd2
{[%clk 0:00:08]} 64... a3 {[%clk 0:00:12]} 65. Kc2 {[%clk 0:00:10]} 65... b3+
{[%clk 0:00:14]} 66. Kb1 {[%clk 0:00:06]} 66... Na4 {[%clk 0:00:16]} 67. Ne7+
{[%clk 0:00:06]} 67... Kc5 {[%clk 0:00:18]} 0-1

[Variant "Standard"]
[Site "Europe Echecs"]

[Event "Sunway Sitges Chess Festival"]
[Date "2024.12.22"]
[White "Gholami Orimi, Mahdi"]
[Black "Maurizzi, Marc`Andria"]
[WhiteElo "2402"]
[BlackElo "2477"]
[Round "17.2"]
[Result "0-1"]
[TimeControl "40/5400+30:1800+30"]

1. d4 {[%clk 0:05:05]} 1... d5 {[%clk 0:05:03]} 2. c4 {[%clk 0:05:07]} 2... e6
{[%clk 0:05:06]} 3. Nc3 {[%clk 0:05:09]} 3... c5 {[%clk 0:05:08]} 4. cxd5 {[%clk
0:05:10]} 4... cxd4 {[%clk 0:05:10]} 5. Qa4+ {[%clk 0:05:02]} 5... Bd7 {[%clk
0:05:13]} 6. Qxd4 {[%clk 0:05:03]} 6... exd5 {[%clk 0:05:15]} 7. Qxd5 {[%clk
0:05:05]} 7... Nf6 {[%clk 0:05:17]} 8. Qd1 {[%clk 0:05:07]} 8... Bc5 {[%clk
0:05:18]} 9. Nf3 {[%clk 0:05:08]} 9... O-O {[%clk 0:05:21]} 10. e3 {[%clk
0:05:09]} 10... Qe7 {[%clk 0:05:23]} 11. Be2 {[%clk 0:05:10]} 11... Nc6 {[%clk
0:05:25]} 12. O-O {[%clk 0:05:10]} 12... Ne5 {[%clk 0:05:28]} 13. Nd4 {[%clk
0:04:59]} 13... Nc6 {[%clk 0:05:30]} 14. Nf3 {[%clk 0:05:01]} 14... Ne5 {[%clk
0:05:32]} 15. a3 {[%clk 0:04:45]} 15... Rac8 {[%clk 0:05:34]} 16. Qc2 {[%clk
0:04:24]} 16... Rfe8 {[%clk 0:05:34]} 17. Rd1 {[%clk 0:04:23]} 17... Neg4 {[%clk
0:05:32]} 18. Qd2 {[%clk 0:03:08]} 18... Nxf2 {[%clk 0:05:26]} 19. Re1 {[%clk
0:01:35]} 19... N2g4 {[%clk 0:05:12]} 20. Qd3 {[%clk 0:01:06]} 20... Nxe3 {[%clk
0:04:46]} 21. Bxe3 {[%clk 0:01:00]} 21... Bxe3+ {[%clk 0:04:48]} 22. Kf1 {[%clk
0:01:03]} 22... Ng4 {[%clk 0:04:29]} 23. Bd1 {[%clk 0:01:02]} 23... Bc6 {[%clk
0:04:06]} 24. Bc2 {[%clk 0:00:30]} 24... g6 {[%clk 0:03:46]} 25. h3 {[%clk
0:00:30]} 25... Bxf3 {[%clk 0:03:39]} 26. hxg4 {[%clk 0:00:31]} 26... Qh4 {[%clk
0:03:27]} 27. Rxe3 {[%clk 0:00:19]} 27... Qh1+ {[%clk 0:03:29]} 28. Kf2 {[%clk
0:00:21]} 28... Qxg2+ {[%clk 0:03:31]} 29. Ke1 {[%clk 0:00:23]} 29... Qg1+
{[%clk 0:03:27]} 30. Kd2 {[%clk 0:00:24]} 30... Qf2+ {[%clk 0:03:29]} 0-1

[Variant "Standard"]
[Site "Europe Echecs"]

[Event "Sunway Sitges Chess Festival"]
[Date "2024.12.22"]
[White "Li, Di"]
[Black "Tin, Jingyao"]
[WhiteElo "2440"]
[BlackElo "2480"]
[Round "18.1"]
[Result "1-0"]
[TimeControl "40/5400+30:1800+30"]

1. d4 {[%clk 0:05:06]} 1... f5 {[%clk 0:05:04]} 2. e4 {[%clk 0:05:04]} 2... fxe4
{[%clk 0:05:05]} 3. Nc3 {[%clk 0:05:07]} 3... Nf6 {[%clk 0:05:07]} 4. Bg5 {[%clk
0:05:09]} 4... d5 {[%clk 0:05:06]} 5. Bxf6 {[%clk 0:05:11]} 5... exf6 {[%clk
0:05:01]} 6. Qh5+ {[%clk 0:05:12]} 6... g6 {[%clk 0:04:56]} 7. Qxd5 {[%clk
0:05:13]} 7... Bb4 {[%clk 0:04:08]} 8. Qxe4+ {[%clk 0:05:11]} 8... Kf7 {[%clk
0:04:09]} 9. O-O-O {[%clk 0:04:08]} 9... Bxc3 {[%clk 0:04:09]} 10. bxc3 {[%clk
0:04:10]} 10... Re8 {[%clk 0:04:04]} 11. Qf4 {[%clk 0:04:08]} 11... Nc6 {[%clk
0:03:39]} 12. Nf3 {[%clk 0:04:08]} 12... Kg7 {[%clk 0:03:34]} 13. h4 {[%clk
0:04:09]} 13... Qe7 {[%clk 0:03:05]} 14. Bd3 {[%clk 0:03:55]} 14... Be6 {[%clk
0:02:46]} 15. Rde1 {[%clk 0:03:54]} 15... Rad8 {[%clk 0:01:46]} 16. g4 {[%clk
0:03:47]} 16... Qa3+ {[%clk 0:01:36]} 17. Kd2 {[%clk 0:03:46]} 17... Ne7 {[%clk
0:01:37]} 18. g5 {[%clk 0:01:16]} 18... Qxc3+ {[%clk 0:01:09]} 19. Kd1 {[%clk
0:01:05]} 19... Nd5 {[%clk 0:00:31]} 20. gxf6+ {[%clk 0:01:07]} 20... Nxf6
{[%clk 0:00:33]} 21. h5 {[%clk 0:01:00]} 21... Bg4 {[%clk 0:00:15]} 22. hxg6
{[%clk 0:00:54]} 22... Qxd4 {[%clk 0:00:-13]} 23. Rxh7+ {[%clk 0:00:39]} 23...
Kf8 {[%clk 0:00:06]} 24. Rf7+ {[%clk 0:00:24]} 24... Kg8 {[%clk 0:00:08]} 25.
Rxe8+ {[%clk 0:00:17]} 25... Nxe8 {[%clk 0:00:10]} 26. Rf8+ {[%clk 0:00:18]}
26... Kg7 {[%clk 0:00:12]} 27. Qf7+ {[%clk 0:00:16]} 27... Kh6 {[%clk 0:00:15]}
28. Qh7# {[%clk 0:00:15]} 1-0

[Variant "Standard"]
[Site "Europe Echecs"]

[Event "Sunway Sitges Chess Festival"]
[Date "2024.12.22"]
[White "Maurizzi, Marc`Andria"]
[Black "Gholami Orimi, Mahdi"]
[WhiteElo "2477"]
[BlackElo "2402"]
[Round "18.2"]
[Result "1/2-1/2"]
[TimeControl "40/5400+30:1800+30"]

1. e4 {[%clk 0:05:06]} 1... g6 {[%clk 0:05:05]} 2. d4 {[%clk 0:05:08]} 2... Bg7
{[%clk 0:05:07]} 3. Nc3 {[%clk 0:05:10]} 3... c6 {[%clk 0:05:09]} 4. h3 {[%clk
0:04:54]} 4... d5 {[%clk 0:05:11]} 5. Nf3 {[%clk 0:04:57]} 5... dxe4 {[%clk
0:05:14]} 6. Nxe4 {[%clk 0:04:59]} 6... Nf6 {[%clk 0:05:16]} 7. Bd3 {[%clk
0:05:00]} 7... O-O {[%clk 0:05:17]} 8. O-O {[%clk 0:05:02]} 8... Nbd7 {[%clk
0:05:19]} 9. Re1 {[%clk 0:05:04]} 9... a5 {[%clk 0:05:14]} 10. a4 {[%clk
0:05:03]} 10... Qc7 {[%clk 0:05:07]} 11. c3 {[%clk 0:05:05]} 11... Nxe4 {[%clk
0:05:04]} 12. Bxe4 {[%clk 0:05:07]} 12... Rb8 {[%clk 0:04:51]} 13. Bg5 {[%clk
0:05:08]} 13... Nf6 {[%clk 0:04:40]} 14. Bd3 {[%clk 0:05:10]} 14... Be6 {[%clk
0:04:31]} 15. Qd2 {[%clk 0:05:06]} 15... Rbd8 {[%clk 0:04:24]} 16. Bh6 {[%clk
0:05:07]} 16... Bc8 {[%clk 0:04:19]} 17. Bf4 {[%clk 0:05:03]} 17... Qd7 {[%clk
0:04:18]} 18. Ne5 {[%clk 0:05:05]} 18... Qe8 {[%clk 0:04:17]} 19. Nc4 {[%clk
0:05:06]} 19... Nd5 {[%clk 0:04:15]} 20. Bh6 {[%clk 0:04:59]} 20... b6 {[%clk
0:04:12]} 21. Be4 {[%clk 0:04:58]} 21... Ba6 {[%clk 0:04:04]} 22. Bxd5 {[%clk
0:04:58]} 22... cxd5 {[%clk 0:04:02]} 23. Bxg7 {[%clk 0:04:55]} 23... Kxg7
{[%clk 0:04:04]} 24. Ne5 {[%clk 0:04:57]} 24... Rd6 {[%clk 0:04:01]} 25. Ng4
{[%clk 0:04:53]} 25... h5 {[%clk 0:03:57]} 26. Qh6+ {[%clk 0:04:49]} 26... Kg8
{[%clk 0:04:00]} 27. Ne5 {[%clk 0:04:48]} 27... b5 {[%clk 0:03:58]} 28. Re3
{[%clk 0:04:16]} 28... Bc8 {[%clk 0:03:47]} 29. axb5 {[%clk 0:04:12]} 29... Qxb5
{[%clk 0:03:48]} 30. Nf3 {[%clk 0:04:12]} 30... g5 {[%clk 0:03:36]} 31. Qxh5
{[%clk 0:04:13]} 31... Qxb2 {[%clk 0:03:22]} 32. Rae1 {[%clk 0:04:04]} 32... Bf5
{[%clk 0:03:21]} 33. Qxg5+ {[%clk 0:04:02]} 33... Bg6 {[%clk 0:03:23]} 34. h4
{[%clk 0:03:57]} 34... Kh7 {[%clk 0:02:46]} 35. Qxe7 {[%clk 0:03:47]} 35... Qb8
{[%clk 0:02:19]} 36. h5 {[%clk 0:02:55]} 36... Bxh5 {[%clk 0:02:13]} 37. Ng5+
{[%clk 0:02:57]} 37... Kg8 {[%clk 0:02:08]} 38. Nh3 {[%clk 0:01:58]} 38... Rg6
{[%clk 0:01:09]} 39. Re5 {[%clk 0:01:59]} 39... Bf3 {[%clk 0:00:59]} 40. Nf4
{[%clk 0:01:53]} 40... Rg7 {[%clk 0:01:01]} 41. Qf6 {[%clk 0:01:43]} 41... Qd8
{[%clk 0:00:16]} 42. Qxd8 {[%clk 0:01:45]} 42... Rxd8 {[%clk 0:00:18]} 43. Re8+
{[%clk 0:01:47]} 43... Rxe8 {[%clk 0:00:20]} 44. Rxe8+ {[%clk 0:01:50]} 44...
Kh7 {[%clk 0:00:23]} 45. Ra8 {[%clk 0:01:51]} 45... Rg4 {[%clk 0:00:24]} 46.
Rxa5 {[%clk 0:01:44]} 46... Rxf4 {[%clk 0:00:25]} 47. gxf3 {[%clk 0:01:45]}
47... Rxf3 {[%clk 0:00:27]} 48. Rxd5 {[%clk 0:01:47]} 48... Rxc3 {[%clk
0:00:29]} 49. Re5 {[%clk 0:01:41]} 49... Rd3 {[%clk 0:00:29]} 1/2-1/2

[Variant "Standard"]
[Site "Europe Echecs"]

[Event "Sunway Sitges Chess Festival"]
[Date "2024.12.22"]
[White "Vetokhin, Savva"]
[Black "Gorshtein, Ido"]
[WhiteElo "2502"]
[BlackElo "2422"]
[Round "18.3"]
[Result "1-0"]
[TimeControl "40/5400+30:1800+30"]

1. d4 {[%clk 0:05:05]} 1... Nf6 {[%clk 0:05:04]} 2. c4 {[%clk 0:05:07]} 2... e6
{[%clk 0:05:06]} 3. Nc3 {[%clk 0:05:09]} 3... Bb4 {[%clk 0:05:07]} 4. e3 {[%clk
0:05:11]} 4... c5 {[%clk 0:05:06]} 5. Nf3 {[%clk 0:05:12]} 5... Bxc3+ {[%clk
0:04:57]} 6. bxc3 {[%clk 0:05:14]} 6... d6 {[%clk 0:04:58]} 7. Bd3 {[%clk
0:05:09]} 7... Nc6 {[%clk 0:04:59]} 8. e4 {[%clk 0:05:10]} 8... e5 {[%clk
0:04:58]} 9. d5 {[%clk 0:05:12]} 9... Ne7 {[%clk 0:04:58]} 10. O-O {[%clk
0:05:11]} 10... h6 {[%clk 0:04:56]} 11. Ne1 {[%clk 0:05:06]} 11... Ng6 {[%clk
0:04:24]} 12. g3 {[%clk 0:05:04]} 12... Bh3 {[%clk 0:04:19]} 13. Ng2 {[%clk
0:05:06]} 13... h5 {[%clk 0:04:20]} 14. Bg5 {[%clk 0:04:46]} 14... h4 {[%clk
0:03:48]} 15. Qf3 {[%clk 0:04:20]} 15... Qd7 {[%clk 0:03:13]} 16. Rfb1 {[%clk
0:03:28]} 16... hxg3 {[%clk 0:02:56]} 17. fxg3 {[%clk 0:03:22]} 17... Ng4 {[%clk
0:02:26]} 18. Qf5 {[%clk 0:02:16]} 18... b6 {[%clk 0:01:28]} 19. Qxd7+ {[%clk
0:02:13]} 19... Kxd7 {[%clk 0:01:29]} 20. Ne3 {[%clk 0:02:05]} 20... Rh5 {[%clk
0:01:10]} 21. Nxg4 {[%clk 0:01:57]} 21... Bxg4 {[%clk 0:01:01]} 22. Be3 {[%clk
0:01:59]} 22... Kc7 {[%clk 0:00:57]} 23. Rf1 {[%clk 0:01:57]} 23... f6 {[%clk
0:00:57]} 24. Rf2 {[%clk 0:01:56]} 24... Rah8 {[%clk 0:00:55]} 25. Rb1 {[%clk
0:01:46]} 25... Nf8 {[%clk 0:00:43]} 26. Be2 {[%clk 0:01:32]} 26... Bxe2 {[%clk
0:00:43]} 27. Rxe2 {[%clk 0:01:35]} 27... Nh7 {[%clk 0:00:39]} 28. Rf1 {[%clk
0:01:32]} 28... Ng5 {[%clk 0:00:38]} 29. Bxg5 {[%clk 0:01:34]} 29... Rxg5 {[%clk
0:00:39]} 30. Kg2 {[%clk 0:01:35]} 30... Rgh5 {[%clk 0:00:40]} 31. h4 {[%clk
0:01:32]} 31... Kd7 {[%clk 0:00:31]} 32. a4 {[%clk 0:01:34]} 32... Kc7 {[%clk
0:00:30]} 33. Rb2 {[%clk 0:01:35]} 33... a5 {[%clk 0:00:26]} 34. Rfb1 {[%clk
0:01:36]} 34... Rb8 {[%clk 0:00:27]} 35. Kh3 {[%clk 0:01:37]} 35... Rh6 {[%clk
0:00:18]} 36. Kg4 {[%clk 0:01:35]} 36... Rg6+ {[%clk 0:00:16]} 37. Kf3 {[%clk
0:01:37]} 37... Rh6 {[%clk 0:00:17]} 38. Rh2 {[%clk 0:01:34]} 38... Rbh8 {[%clk
0:00:12]} 39. Rbh1 {[%clk 0:01:35]} 39... Kd7 {[%clk 0:00:11]} 40. g4 {[%clk
0:01:32]} 40... g5 {[%clk 0:00:08]} 41. Kg3 {[%clk 0:01:34]} 41... R6h7 {[%clk
0:00:06]} 42. h5 {[%clk 0:01:29]} 42... Rh6 {[%clk 0:00:07]} 43. Rf2 {[%clk
0:01:31]} 43... Rf8 {[%clk 0:00:05]} 44. Rhf1 {[%clk 0:01:33]} 44... Ke7 {[%clk
0:00:05]} 45. Rb2 {[%clk 0:01:35]} 45... Rb8 {[%clk 0:00:05]} 46. Rfb1 {[%clk
0:01:36]} 1-0

[Variant "Standard"]
[Site "Europe Echecs"]